fUST/lending_fUST_20260129
["ID","MTS","AMOUNT","RATE_DAILY","PERIOD"]
[403961695,1769694647650,-3000.0,0.0002102,2]
[403961696,1769694647659,-3000.0,0.0002103,2]
[403961697,1769694647671,-3000.0,0.0002104,2]
[403961698,1769694647680,-3000.0,0.0002105,2]
[403961699,1769694647690,-3000.0,0.0002106,2]
[403961700,1769694647700,-3000.0,0.0002107,2]
[403961701,1769694647710,-3000.0,0.0002108,2]
[403961702,1769694647719,-3000.0,0.0002109,2]
[403961704,1769694647728,-3000.0,0.000211,2]
[403961706,1769694647738,-163.16,0.000211,2]
[403961708,1769694647747,-3000.0,0.0002111,2]
[403961710,1769694647758,-3000.0,0.0002112,2]
[403961711,1769694647767,-3000.0,0.0002113,2]
[403961713,1769694647776,-3000.0,0.0002114,2]
[403961715,1769694647785,-3000.0,0.0002115,2]
[403961716,1769694647794,-3000.0,0.0002116,2]
[403961717,1769694647803,-3000.0,0.0002117,2]
[403961718,1769694647812,-3000.0,0.0002118,2]
[403961719,1769694647822,-163.16,0.0002118,2]
[403961720,1769694647831,-3000.0,0.0002119,2]
[403961721,1769694647840,-3000.0,0.000212,2]
[403961722,1769694647849,-3000.0,0.0002121,2]
[403961723,1769694647859,-3000.0,0.0002122,2]
[403961724,1769694647869,-3000.0,0.0002123,2]
[403961725,1769694647878,-3000.0,0.0002124,2]
[403961726,1769694647887,-3000.0,0.0002125,2]
[403961727,1769694647896,-3000.0,0.0002126,2]
[403961728,1769694647905,-3000.0,0.0002127,2]
[403961729,1769694647914,-3000.0,0.0002128,2]
[403961730,1769694647923,-3162.0,0.00021283,2]
[403961731,1769694647932,-3000.0,0.0002129,2]
[403961732,1769694647941,-3000.0,0.000213,2]
[403961733,1769694647950,-3000.0,0.0002131,2]
[403961734,1769694647958,-3000.0,0.0002132,2]
[403961735,1769694647967,-3000.0,0.0002133,2]
[403961736,1769694647976,-3000.0,0.0002134,2]
[403961737,1769694647985,-3000.0,0.0002135,2]
[403961739,1769694647995,-3000.0,0.0002136,2]
[403961741,1769694648003,-3000.0,0.0002137,2]
[403961743,1769694648013,-3000.0,0.0002138,2]
[403961745,1769694648022,-3000.0,0.0002139,2]
[403961747,1769694648031,-3000.0,0.000214,2]
[403961749,1769694648040,-3000.0,0.0002141,2]
[403961751,1769694648049,-3000.0,0.0002142,2]
[403961753,1769694648058,-4144.473227,0.0002143,2]
[403961755,1769694648067,-198.0,0.00021479,4]
[403961757,1769694648078,-1550.7,0.000215,2]
[403961759,1769694648087,-3280.88601016,0.00021576,2]
[403961761,1769694648096,-1325.61,0.0002182,2]
[403961763,1769694648106,-150.0,0.00021837,2]
[403961765,1769694648115,-150.0,0.00021837,2]
[403961767,1769694648125,-477.611851,0.00021918,2]
[403961769,1769694648134,-1507.0407865,0.00021918,7]
[403961771,1769694648143,-150.49482106,0.00021918,2]
[403961773,1769694648153,-163.15,0.00022,7]
[403961775,1769694648162,-549.91,0.00022,7]
[403961777,1769694648171,-454.63175259,0.00022,2]
[403961779,1769694648180,-1000.0,0.00022161,10]
[403961781,1769694648189,-1000.0,0.00022161,10]
[403961783,1769694648198,-586.53134031,0.00022285,2]
[403961785,1769694648208,-36843.71011178,0.00022881,5]
[403961787,1769694648220,-700.18600801,0.00022986,2]
[403961789,1769694648229,-1041.66666667,0.00023,3]
[403961791,1769694648239,-160.0,0.00023,3]
[403961793,1769694648248,-167.0,0.00023,7]
[403961795,1769694648258,-201.0,0.00023123,9]
[403961797,1769694648267,-151.0,0.00023288,2]
[403961799,1769694648276,-151.0,0.00023288,2]
[403961801,1769694648285,-151.0,0.00023288,2]
[403961803,1769694648294,-158.384039,0.00023288,2]
[403961805,1769694648303,-151.0,0.00023288,2]
[403961807,1769694648312,-151.0,0.00023288,2]
[403961808,1769694648321,-273.764497,0.00023288,2]
[403961810,1769694648330,-273.764497,0.00023288,2]
[403961812,1769694648339,-151.0,0.00023288,2]
[403961814,1769694648348,-151.0,0.00023288,2]
[403961816,1769694648358,-273.764497,0.00023288,2]
[403961818,1769694648367,-273.764497,0.00023288,2]
[403961820,1769694648376,-164.153843,0.00023288,2]
[403961822,1769694648386,-273.764497,0.00023288,2]
[403961824,1769694648395,-273.764497,0.00023288,2]
[403961826,1769694648404,-273.764497,0.00023288,2]
[403961828,1769694648412,-273.764497,0.00023288,2]
[403961830,1769694648421,-151.0,0.00023288,2]
[403961832,1769694648430,-151.0,0.00023288,2]
[403961834,1769694648439,-151.0,0.00023288,2]
[403961836,1769694648449,-151.0,0.00023288,2]
[403961838,1769694648458,-151.0,0.00023288,2]
[403961840,1769694648466,-151.0,0.00023288,2]
[403961842,1769694648476,-151.0,0.00023288,2]
[403961844,1769694648485,-161.556876,0.00023288,2]
[403961846,1769694648494,-521.759041,0.00023288,2]
[403961848,1769694648503,-521.759041,0.00023288,2]
[403961850,1769694648512,-151.0,0.00023288,2]
[403961852,1769694648521,-521.759041,0.00023288,2]
[403961854,1769694648530,-151.0,0.00023288,2]
[403961855,1769694648539,-521.759041,0.00023288,2]
[403961857,1769694648548,-521.759041,0.00023288,2]
[403961859,1769694648558,-521.759041,0.00023288,2]
[403961861,1769694648567,-521.759041,0.00023288,2]
[403961863,1769694648576,-521.759041,0.00023288,2]
[403961865,1769694648584,-151.0,0.00023288,2]
[403961867,1769694648593,-151.0,0.00023288,2]
[403961869,1769694648602,-2233.184131,0.00023288,2]
[403961871,1769694648611,-2233.184131,0.00023288,2]
[403961873,1769694648620,-2233.184131,0.00023288,2]
[403961875,1769694648632,-2233.184131,0.00023288,2]
[403961877,1769694648641,-2233.184131,0.00023288,2]
[403961879,1769694648650,-2233.184131,0.00023288,2]
[403961881,1769694648660,-2233.184131,0.00023288,2]
[403961883,1769694648670,-2233.184131,0.00023288,2]
[403961884,1769694648679,-374.810997,0.00023288,2]
[403961886,1769694648688,-374.810997,0.00023288,2]
[403961888,1769694648698,-374.810997,0.00023288,2]
[403961890,1769694648707,-374.810997,0.00023288,2]
[403961892,1769694648716,-374.810997,0.00023288,2]
[403961894,1769694648726,-374.810997,0.00023288,2]
[403961896,1769694648735,-374.810997,0.00023288,2]
[403961898,1769694648744,-374.810997,0.00023288,2]
[403961900,1769694648754,-151.0,0.00023288,2]
[403961902,1769694648763,-151.0,0.00023288,2]
[403961904,1769694648772,-151.0,0.00023288,2]
[403961906,1769694648781,-229.848003,0.00023288,2]
[403961907,1769694648791,-151.0,0.00023288,2]
[403961909,1769694648800,-151.0,0.00023288,2]
[403961911,1769694648809,-151.0,0.00023288,2]
[403961913,1769694648818,-151.0,0.00023288,2]
[403961915,1769694648827,-151.0,0.00023288,2]
[403961917,1769694648836,-229.88557,0.00023288,2]
[403961919,1769694648845,-160.297494,0.00023288,2]
[403961921,1769694648854,-201.954617,0.00023288,2]
[403961923,1769694648864,-201.954617,0.00023288,2]
[403961925,1769694648872,-201.954617,0.00023288,2]
[403961927,1769694648882,-201.954617,0.00023288,2]
[403961929,1769694648891,-201.954617,0.00023288,2]
[403961931,1769694648900,-177.231744,0.00023288,2]
[403961933,1769694648909,-201.954617,0.00023288,2]
[403961935,1769694648918,-177.231744,0.00023288,2]
[403961937,1769694648928,-177.231744,0.00023288,2]
[403961939,1769694648937,-201.954617,0.00023288,2]
[403961941,1769694648946,-177.231744,0.00023288,2]
[403961943,1769694648955,-201.954617,0.00023288,2]
[403961945,1769694648964,-177.231744,0.00023288,2]
[403961947,1769694648973,-177.231744,0.00023288,2]
[403961949,1769694648982,-177.231744,0.00023288,2]
[403961951,1769694648991,-177.231744,0.00023288,2]
[403961953,1769694649003,-151.0,0.00023288,2]
[403961955,1769694649011,-151.0,0.00023288,2]
[403961957,1769694649020,-151.0,0.00023288,2]
[403961959,1769694649029,-151.0,0.00023288,2]
[403961960,1769694649038,-151.0,0.00023288,2]
[403961962,1769694649050,-152.162142,0.00023288,2]
[403961964,1769694649059,-374.412979,0.00023288,2]
[403961966,1769694649068,-374.412979,0.00023288,2]
[403961968,1769694649078,-374.412979,0.00023288,2]
[403961970,1769694649087,-374.412979,0.00023288,2]
[403961972,1769694649096,-374.412979,0.00023288,2]
[403961974,1769694649104,-374.412979,0.00023288,2]
[403961976,1769694649114,-323.914,0.00023288,2]
[403961978,1769694649124,-323.914,0.00023288,2]
[403961980,1769694649133,-374.412979,0.00023288,2]
[403961982,1769694649142,-374.412979,0.00023288,2]
[403961984,1769694649152,-374.412979,0.00023288,2]
[403961986,1769694649161,-323.914,0.00023288,2]
[403961988,1769694649169,-323.914,0.00023288,2]
[403961990,1769694649178,-374.412979,0.00023288,2]
[403961992,1769694649187,-374.412979,0.00023288,2]
[403961994,1769694649196,-323.914,0.00023288,2]
[403961996,1769694649204,-374.412979,0.00023288,2]
[403961997,1769694649213,-323.914,0.00023288,2]
[403961999,1769694649221,-323.914,0.00023288,2]
[403962001,1769694649230,-323.914,0.00023288,2]
[403962003,1769694649239,-198.323797,0.00023288,2]
[403962005,1769694649248,-198.323797,0.00023288,2]
[403962007,1769694649257,-198.323797,0.00023288,2]
[403962009,1769694649266,-198.323797,0.00023288,2]
[403962011,1769694649275,-198.323797,0.00023288,2]
[403962013,1769694649283,-198.323797,0.00023288,2]
[403962015,1769694649292,-198.323797,0.00023288,2]
[403962017,1769694649301,-198.323797,0.00023288,2]
[403962018,1769694649310,-198.323797,0.00023288,2]
[403962020,1769694649318,-198.323797,0.00023288,2]
[403962035,1769694649443,-198.323797,0.00023288,2]
[403962037,1769694649452,-198.323797,0.00023288,2]
[403962039,1769694649462,-151.0,0.00023288,2]
[403962041,1769694649471,-151.0,0.00023288,2]
[403962042,1769694649480,-151.0,0.00023288,2]
[403962044,1769694649489,-151.0,0.00023288,2]
[403962045,1769694649498,-151.0,0.00023288,2]
[403962046,1769694649507,-151.0,0.00023288,2]
[403962047,1769694649516,-151.0,0.00023288,2]
[403962048,1769694649525,-151.0,0.00023288,2]
[403962049,1769694649534,-151.0,0.00023288,2]
[403962050,1769694649543,-235.0,0.00023288,2]
[403962051,1769694649551,-303.289075,0.00023288,2]
[403962053,1769694649560,-303.289075,0.00023288,2]
[403962055,1769694649569,-303.289075,0.00023288,2]
[403962057,1769694649577,-303.289075,0.00023288,2]
[403962058,1769694649585,-303.289075,0.00023288,2]
[403962060,1769694649594,-303.289075,0.00023288,2]
[403962062,1769694649603,-151.0,0.00023288,2]
[403962064,1769694649612,-151.0,0.00023288,2]
[403962065,1769694649620,-151.0,0.00023288,2]
[403962067,1769694649633,-303.289075,0.00023288,2]
[403962069,1769694649643,-303.289075,0.00023288,2]
[403962070,1769694649652,-303.289075,0.00023288,2]
[403962071,1769694649661,-303.289075,0.00023288,2]
[403962072,1769694649671,-60019.26178574,0.000233,2]
[403962073,1769694649680,-2730.0,0.00023388,2]
[403962074,1769694649689,-1369.0,0.00023477,2]
[403962075,1769694649698,-630.0,0.00023477,2]
[403962076,1769694649707,-3142888.76287831,0.0002352,2]
[403962077,1769694649837,-56829.81353797,0.0002352,2]
[403962078,1769694650476,-3e-08,0.00011507,2]
[403962079,1769694650487,-395.72,0.00011507,2]
[403962080,1769694650613,-440.52422644,0.0001127,2]
[403962081,1769694650624,-297.67197627,0.00011507,2]
[403962082,1769694650636,-90.62379729,0.00012055,2]
[403962083,1769694650730,-628.42368213,0.00012055,2]
[403962084,1769694650739,-745.65223616,0.00012603,2]
[403962085,1769694650749,-280.21772659,0.00013151,2]
[403962092,1769694666644,2489.64245091,0.00010913,2]
[403962093,1769694670747,70.95220768,0.0001,2]
[403962094,1769694670775,929.04779232,0.0001,2]
[403962096,1769694714723,-563.00483908,0.00011,2]
[403962097,1769694716827,-505.45181849,0.00011,2]
[403962098,1769694724653,500.0,0.00035101,120]
[403962099,1769694724883,500.0,0.00035101,120]
[403962100,1769694725140,587.81901664,0.00035101,120]
[403962101,1769694731997,1068.4566576,0.0001091,2]
[403962105,1769694783814,300.0,0.0001091,2]
[403962108,1769694806141,300.0,0.0001091,2]
[403962110,1769694844506,150.0,0.0001091,2]
[403962111,1769694852348,150.0,0.0001091,2]
[403962112,1769694867950,300.0,0.0001091,2]
[403962113,1769694887761,1817.35031393,0.00010859,2]
[403962114,1769694912880,302.93513985,0.0001091,2]
[403962115,1769694984800,-207.41694966,0.00010949,2]
[403962116,1769694987704,-261.2166889,0.00010949,2]
[403962117,1769694990320,-31.36636144,0.00010949,2]
[403962118,1769694990342,-316.13782093,0.00010949,2]
[403962119,1769694991892,-317.14285647,0.00010949,2]
[403962120,1769694991916,-500.0,0.00010949,2]
[403962121,1769694991943,-247.2049713,0.00010949,2]
[403962122,1769694993976,-226.42316604,0.00010949,2]
[403962123,1769694996984,-26.37186266,0.00010949,2]
[403962124,1769694997011,-283.77184407,0.00010949,2]
[403962125,1769695059996,-216.22815593,0.00010949,2]
[403962126,1769695060030,-239.47121393,0.00010949,2]
[403962127,1769695060066,-500.0,0.00010949,2]
[403962128,1769695060099,-500.0,0.00010949,2]
[403962129,1769695060133,-500.0,0.00010949,2]
[403962130,1769695060168,-642.80020527,0.00010949,2]
[403962131,1769695060200,-500.0,0.00010949,2]
[403962132,1769695060231,-500.0,0.00010949,2]
[403962133,1769695060263,-500.0,0.00010949,2]
[403962134,1769695060296,-500.0,0.00010949,2]
[403962135,1769695060329,-303.01084974,0.00010949,2]
[403962136,1769695064673,-196.98915026,0.00010949,2]
[403962137,1769695064705,-500.0,0.00010949,2]
[403962138,1769695064740,-500.0,0.00010949,2]
[403962139,1769695064776,-308.38950158,0.00010949,2]
[403962140,1769695064810,-264.05091571,0.0001095,2]
[403962141,1769695065299,-2285.09033137,0.0001095,2]
[403962142,1769695067842,-10000.01,0.0001095,2]
[403962166,1769695081193,3919.90478027,0.0001091,2]
[403962171,1769695088971,3178.60820255,0.0001091,2]
[403962173,1769695097221,2901.49701718,0.0001091,2]
[403962174,1769695097246,476.98696295,0.0001091,2]
[403962175,1769695112703,5000.0,0.0001091,2]
[403962176,1769695120485,3422.79911533,0.0001091,2]
[403962177,1769695136453,1100.22392172,0.0001091,2]
[403962178,1769695136478,277.55173347,0.0001091,2]
[403962179,1769695159081,5000.0,0.0001091,2]
[403962180,1769695167349,4722.45826653,0.0001091,2]
[403962181,1769695167373,277.54173347,0.0001091,2]
[403962182,1769695175408,3072.23505517,0.0001091,2]
[403962183,1769695183768,5000.0,0.0001091,2]
[403962184,1769695192282,500.0,0.0001091,2]
[403962185,1769695207766,1150.23321136,0.0001091,2]
[403962186,1769695207794,3849.76678864,0.0001091,2]
[403962187,1769695230467,5000.0,0.0001091,2]
[403962188,1769695231332,191.30911615,0.00010859,2]
[403962194,1769695252857,958.93409521,0.0001091,2]
[403962195,1769695252884,4041.06590479,0.0001091,2]
[403962196,1769695275697,5000.0,0.0001091,2]
[403962197,1769695278038,958.94409521,0.00010859,2]
[403962198,1769695278063,843.29045125,0.00010859,2]
[403962199,1769695298222,4370.39318455,0.0001091,2]
[403962200,1769695302670,383.692,0.00010731,2]
[403962201,1769695318255,4402.6343642,0.0001085,2]
[403962202,1769695318282,10000.01,0.0001085,2]
[403962203,1769695318309,10000.01,0.0001085,2]
[403962204,1769695318336,10000.01,0.0001085,2]
[403962205,1769695318368,10000.01,0.0001085,2]
[403962206,1769695318405,10000.01,0.0001085,2]
[403962207,1769695318439,10000.01,0.0001085,2]
[403962208,1769695318470,10000.01,0.0001085,2]
[403962209,1769695318501,10000.01,0.0001085,2]
[403962210,1769695318532,10000.01,0.0001085,2]
[403962211,1769695318566,999070.95220768,0.0001085,2]
[403962212,1769695319530,-766.68783654,0.0001085,2]
[403962213,1769695320988,-5000.0,0.00010742,2]
[403962214,1769695322528,-300.0,0.0001085,2]
[403962215,1769695326381,-300.0,0.00010849,2]
[403962216,1769695326413,-59.78471255,0.0001085,2]
[403962217,1769695328469,-0.01,0.0001085,2]
[403962218,1769695328595,-10000.01,0.0001085,2]
[403962219,1769695328753,-10000.01,0.0001085,2]
[403962220,1769695329105,-10000.01,0.0001085,2]
[403962221,1769695329120,-10000.01,0.0001085,2]
[403962222,1769695329147,-10000.01,0.0001085,2]
[403962223,1769695329248,-10000.01,0.0001085,2]
[403962224,1769695329385,-10000.01,0.0001085,2]
[403962225,1769695329515,-10000.01,0.0001085,2]
[403962226,1769695329622,-10000.01,0.0001085,2]
[403962227,1769695329750,-10000.01,0.0001085,2]
[403962228,1769695329894,-10000.01,0.0001085,2]
[403962229,1769695330022,-10000.01,0.0001085,2]
[403962230,1769695330145,-10000.01,0.0001085,2]
[403962231,1769695349306,-1832.80396272,0.00010635,2]
[403962232,1769695349335,-1832.80396272,0.00010742,2]
[403962233,1769695349386,-2668.79414912,0.0001085,2]
[403962234,1769695349472,-10000.01,0.0001085,2]
[403962235,1769695349597,-10000.01,0.0001085,2]
[403962236,1769695349749,-10000.01,0.0001085,2]
[403962237,1769695369829,-169.22917765,0.00010635,2]
[403962238,1769695373058,-217.98082238,0.00010635,2]
[403962239,1769695375111,-304.52381263,0.00010635,2]
[403962240,1769695376864,-202.84981312,0.00010635,2]
[403962241,1769695379433,-284.03992585,0.00010635,2]
[403962242,1769695380977,-196.52806959,0.00010635,2]
[403962243,1769695383012,-375.02004867,0.00010635,2]
[403962244,1769695385057,-872.79978635,0.00010635,2]
[403962245,1769695386672,-300.0,0.00010635,2]
[403962246,1769695389362,-300.0,0.00010635,2]
[403962247,1769695454427,10000.01,9.913e-05,2]
[403962248,1769695454452,10000.01,9.913e-05,2]
[403962249,1769695454479,10000.01,9.913e-05,2]
[403962250,1769695454503,10000.01,9.913e-05,2]
[403962251,1769695454527,10000.01,9.913e-05,2]
[403962252,1769695454550,10000.01,9.913e-05,2]
[403962253,1769695464827,-389.18707028,9.913e-05,2]
[403962254,1769695467467,-279.22259643,9.913e-05,2]
[403962255,1769695469596,-391.7614078,9.913e-05,2]
[403962256,1769695471089,-445.43334601,9.913e-05,2]
[403962257,1769695473448,2506.0,0.00034762,120]
[403962258,1769695473849,-285.9398742,9.913e-05,2]
[403962259,1769695478133,-534.25560069,9.913e-05,2]
[403962260,1769695481433,-413.05536571,9.913e-05,2]
[403962261,1769695483478,-175.41817762,9.913e-05,2]
[403962262,1769695484684,-10000.01,9.913e-05,2]
[403962263,1769695485560,-409.58182238,9.913e-05,2]
[403962264,1769695486577,-10000.01,9.913e-05,2]
[403962265,1769695486691,-10000.01,9.913e-05,2]
[403962266,1769695486834,-10000.01,9.913e-05,2]
[403962267,1769695486965,-10000.01,9.913e-05,2]
[403962268,1769695487087,-10000.01,9.913e-05,2]
[403962269,1769695487237,-10000.01,9.913e-05,2]
[403962270,1769695487643,-270.91002487,9.913e-05,2]
[403962271,1769695489857,-10000.01,9.913e-05,2]
[403962272,1769695489890,-10000.01,9.913e-05,2]
[403962273,1769695490403,-440.52422647,9.913e-05,2]
[403962274,1769695492791,-285.51730339,9.913e-05,2]
[403962275,1769695495536,-74.25718155,9.913e-05,2]
[403962276,1769695495560,-92.36110227,0.0001011,2]
[403962277,1769695498216,-157.52,0.0001011,2]
[403962278,1769695499744,-50.11889773,0.0001011,2]
[403962279,1769695499773,-157.81174774,0.0001011,2]
[403962280,1769695502814,-142.18825226,0.0001011,2]
[403962281,1769695502841,-144.19444953,0.0001011,2]
[403962282,1769695504335,-151.80242089,0.00010109,2]
[403962283,1769695505947,-199.28788773,0.0001001,2]
[403962284,1769695507447,-228.98235327,0.0001001,2]
[403962285,1769695509343,-176.21087148,0.0001001,2]
[403962286,1769695511795,-66.95922129,0.0001001,2]
[403962287,1769695511819,-148.19757911,0.00010109,2]
[403962288,1769695511845,-135.30120764,0.00010109,2]
[403962289,1769695514290,-854.75668964,0.00010109,2]
[403962290,1769695517590,-183.06853102,0.00010109,2]
[403962291,1769695519543,-26.8735717,0.00010109,2]
[403962292,1769695519567,-155.80555047,0.0001011,2]
[403962293,1769695519589,-300.0,0.0001011,2]
[403962294,1769695519612,-300.0,0.0001011,2]
[403962295,1769695519634,-300.0,0.0001011,2]
[403962296,1769695519656,-300.0,0.0001011,2]
[403962297,1769695519677,-300.0,0.0001011,2]
[403962298,1769695519698,-300.0,0.0001011,2]
[403962299,1769695519722,-300.0,0.0001011,2]
[403962300,1769695519745,-300.0,0.0001011,2]
[403962301,1769695519768,-300.0,0.0001011,2]
[403962302,1769695519791,-300.0,0.0001011,2]
[403962303,1769695519810,-300.0,0.0001011,2]
[403962304,1769695519833,-300.0,0.0001011,2]
[403962305,1769695519857,-600.0,0.0001011,2]
[403962306,1769695519881,-278.51525002,0.00010373,2]
[403962307,1769695519905,-1777.02854376,0.00010635,2]
[403962308,1769695519927,-3561.77708405,0.00010742,2]
[403962309,1769695521692,-9067.34359633,0.00010742,2]
[403962310,1769695521721,-932.65640367,0.0001085,2]
[403962311,1769695522875,-10000.0,0.0001085,2]
[403962312,1769695524016,-9067.34359633,0.00010635,2]
[403962313,1769695524042,-932.65640367,0.0001085,2]
[403962314,1769695525301,-10000.0,0.0001085,2]
[403962315,1769695526258,-10000.0,0.0001085,2]
[403962316,1769695527287,-10000.0,0.0001085,2]
[403962317,1769695528269,-10000.0,0.0001085,2]
[403962318,1769695529301,-10000.0,0.0001085,2]
[403962319,1769695530338,-10000.0,0.0001085,2]
[403962320,1769695532375,-1696.85431543,0.00010742,2]
[403962321,1769695532403,-8303.14568457,0.0001085,2]
[403962322,1769695533831,-10000.0,0.0001085,2]
[403962323,1769695569709,-272.54134027,9.911e-05,2]
[403962324,1769695573158,-27.45865973,9.911e-05,2]
[403962325,1769695573181,-300.0,9.911e-05,2]
[403962326,1769695573203,-100.8522002,9.912e-05,2]
[403962327,1769695576327,-178.58301554,9.912e-05,2]
[403962328,1769695578324,-220.56478426,9.912e-05,2]
[403962329,1769695578352,-79.43521574,9.912e-05,2]
[403962330,1769695580745,-316.88706741,9.912e-05,2]
[403962331,1769695582288,-59.96808967,9.912e-05,2]
[403962332,1769695582314,-307.315714,9.912e-05,2]
[403962333,1769695584539,-152.15411431,9.912e-05,2]
[403962334,1769695590343,-40.53017169,9.912e-05,2]
[403962335,1769695590368,-113.57579339,9.912e-05,2]
[403962336,1769695592054,-312.61002231,9.912e-05,2]
[403962337,1769695597310,-73.8141843,9.912e-05,2]
[403962338,1769695597335,-139.63042166,9.912e-05,2]
[403962339,1769695601164,-271.82427108,9.912e-05,2]
[403962340,1769695605248,-284.31209463,0.0001,2]
[403962341,1769695607469,-188.23056669,0.0001,2]
[403962342,1769695613303,-331.33758206,0.0001,2]
[403962343,1769695621082,-261.68546323,0.0001,2]
[403962344,1769695621701,-10000.01,0.0001,2]
[403962345,1769695621912,-730.26801008,0.0001,2]
[403962346,1769695623115,-300.0,0.00010109,2]
[403962347,1769695623141,-0.00274786,0.00010109,2]
[403962348,1769695623172,300.0,9.999e-05,2]
[403962354,1769695659825,-154.54,0.00010008,2]
[403962355,1769695662275,-61.40305162,0.00010008,2]
[403962356,1769695662298,-241.67694838,0.00010109,2]
[403962357,1769695668002,-58.32030376,0.00010109,2]
[403962358,1769695668035,-300.0,0.00010109,2]
[403962359,1769695668068,-300.0,0.00010109,2]
[403962360,1769695668100,-300.0,0.00010109,2]
[403962361,1769695668132,-300.0,0.00010109,2]
[403962362,1769695668163,-300.0,0.00010109,2]
[403962363,1769695668193,-300.0,0.00010109,2]
[403962364,1769695668224,-300.0,0.00010109,2]
[403962365,1769695668255,-300.0,0.00010109,2]
[403962366,1769695668284,-300.0,0.00010109,2]
[403962367,1769695668313,-300.0,0.00010109,2]
[403962368,1769695668346,-300.0,0.00010109,2]
[403962369,1769695668378,-300.0,0.00010109,2]
[403962370,1769695668409,-300.0,0.00010109,2]
[403962372,1769695680493,358.44,3.8e-06,2]
[403962373,1769695680799,358.44,3.8e-06,2]
[403962374,1769695698850,-600.0,0.0001031,2]
[403962375,1769695715234,309.84395616,0.0001,9]
[403962376,1769695715305,-347.18575282,0.00010535,2]
[403962377,1769695715335,-207.93064547,0.00010535,2]
[403962378,1769695731754,-500.0,0.00010634,2]
[403962379,1769695731786,-169.40326098,0.00010634,2]
[403962380,1769695731820,-500.0,0.00010634,2]
[403962381,1769695731853,-500.0,0.00010634,2]
[403962382,1769695731885,-500.0,0.00010634,2]
[403962383,1769695731917,-500.0,0.00010634,2]
[403962384,1769695731953,-304.95921472,0.00010634,2]
[403962385,1769695731988,-545.96573545,0.00010634,2]
[403962386,1769695732022,-500.0,0.00010634,2]
[403962387,1769695732055,-500.0,0.00010634,2]
[403962388,1769695732087,-459.3535777,0.00010634,2]
[403962389,1769695732405,-40.6464223,0.00010634,2]
[403962390,1769695732440,-500.0,0.00010634,2]
[403962391,1769695732474,-500.0,0.00010634,2]
[403962392,1769695732504,-168.58228268,0.00010634,2]
[403962393,1769695732535,-500.0,0.00010634,2]
[403962394,1769695732566,-500.0,0.00010634,2]
[403962395,1769695732598,-500.0,0.00010634,2]
[403962396,1769695732629,-500.0,0.00010634,2]
[403962397,1769695732661,-500.0,0.00010634,2]
[403962398,1769695732692,-500.0,0.00010634,2]
[403962399,1769695732723,-500.0,0.00010634,2]
[403962400,1769695732755,-281.55259004,0.00010634,2]
[403962401,1769695732902,-18.44740996,0.00010634,2]
[403962402,1769695732941,-600.57744418,0.00010634,2]
[403962403,1769695732979,-500.0,0.00010634,2]
[403962404,1769695733016,-500.0,0.00010634,2]
[403962405,1769695733050,-500.0,0.00010634,2]
[403962406,1769695733083,-500.0,0.00010634,2]
[403962407,1769695733115,-500.0,0.00010634,2]
[403962408,1769695733148,-500.0,0.00010634,2]
[403962409,1769695733180,-500.0,0.00010634,2]
[403962410,1769695733898,1761.96029172,0.00010535,2]
[403962411,1769695733925,3238.03970828,0.00010535,2]
[403962412,1769695742495,5000.0,0.00010634,2]
[403962413,1769695742868,300.0,0.00010634,2]
[403962414,1769695743073,300.0,0.00010634,2]
[403962415,1769695747161,-300.0,0.00010846,2]
[403962416,1769695747195,-300.0,0.00010846,2]